fUST/lending_fUST_20250720
["ID","MTS","AMOUNT","RATE_DAILY","PERIOD"]
[373396175,1752984645588,-460.0,0.00018525,2]
[373396176,1752984645600,-463.18029216,0.00018525,2]
[373396177,1752984645610,-463.57941893,0.00018525,2]
[373396178,1752984645620,-460.0,0.00018525,2]
[373396179,1752984645629,-463.55060955,0.00018525,2]
[373396180,1752984645639,-467.35119745,0.00018525,2]
[373396181,1752984645648,-460.0,0.00018525,2]
[373396182,1752984645658,-460.0,0.00018525,2]
[373396183,1752984645667,-460.0,0.00018525,2]
[373396184,1752984645677,-460.0,0.00018525,2]
[373396185,1752984645686,-460.0,0.00018525,2]
[373396186,1752984645696,-460.0,0.00018525,2]
[373396187,1752984645706,-462.79318585,0.00018525,2]
[373396188,1752984645715,-460.0,0.00018525,2]
[373396189,1752984645725,-460.0,0.00018525,2]
[373396190,1752984645735,-460.0,0.00018525,2]
[373396191,1752984645744,-460.0,0.00018525,2]
[373396192,1752984645754,-460.0,0.00018525,2]
[373396193,1752984645764,-460.0,0.00018525,2]
[373396194,1752984645773,-460.0,0.00018525,2]
[373396195,1752984645783,-460.0,0.00018525,2]
[373396196,1752984645792,-405.45942984,0.00018525,2]
[373396197,1752984645802,-460.0,0.00018525,2]
[373396198,1752984645812,-460.0,0.00018525,2]
[373396200,1752984645821,-460.0,0.00018525,2]
[373396202,1752984645830,-256.04166301,0.00018525,2]
[373396203,1752984645839,-460.0,0.00018525,2]
[373396204,1752984645849,-509.49,0.00018525,2]
[373396205,1752984645858,-460.0,0.00018525,2]
[373396206,1752984645867,-460.0,0.00018525,2]
[373396207,1752984645877,-210.78235737,0.00018526,2]
[373396208,1752984645886,-460.0,0.00018526,2]
[373396209,1752984645896,-460.0,0.00018526,2]
[373396210,1752984645905,-162.21,0.00018526,2]
[373396211,1752984645917,-460.0,0.00018526,2]
[373396212,1752984645926,-460.0,0.00018526,2]
[373396213,1752984645937,-699.01,0.00018526,2]
[373396218,1752984645947,-1665.84,0.00018526,2]
[373396219,1752984646044,-460.0,0.00018526,2]
[373396220,1752984646054,-460.0,0.00018526,2]
[373396221,1752984646064,-519.21697858,0.00018526,2]
[373396222,1752984646074,-460.0,0.00018526,2]
[373396223,1752984646083,-460.0,0.00018527,2]
[373396224,1752984646093,-460.0,0.00018527,2]
[373396225,1752984646103,-464.92353618,0.00018527,2]
[373396226,1752984646112,-460.0,0.00018527,2]
[373396227,1752984646121,-590.24181969,0.00018612,2]
[373396228,1752984646131,-500.0,0.00018621,2]
[373396229,1752984646140,-1000.0,0.00018621,2]
[373396230,1752984646150,-500.0,0.00018621,2]
[373396231,1752984646160,-460.0,0.00018625,2]
[373396232,1752984646170,-460.0,0.00018625,2]
[373396233,1752984646179,-460.0,0.00018625,2]
[373396234,1752984646189,-410.0,0.00018625,2]
[373396235,1752984646199,-287.50800003,0.00018625,2]
[373396236,1752984646208,-460.0,0.00018625,2]
[373396237,1752984646218,-460.0,0.00018626,2]
[373396238,1752984646229,-460.0,0.00018626,2]
[373396239,1752984646238,-460.0,0.00018626,2]
[373396240,1752984646249,-460.0,0.00018626,2]
[373396241,1752984646258,-482.56,0.00018626,2]
[373396242,1752984646268,-503.55,0.00018626,2]
[373396243,1752984646278,-1298.4,0.00018626,2]
[373396244,1752984646287,-959.6,0.00018727,2]
[373396245,1752984646296,-460.0,0.00018727,2]
[373396246,1752984646306,-600.27,0.00018727,2]
[373396247,1752984646315,-748.7,0.00018727,2]
[373396248,1752984646324,-509.24,0.00018796,2]
[373396249,1752984646334,-1077.5,0.00018798,2]
[373396250,1752984646343,-460.0,0.00018798,2]
[373396251,1752984646352,-906.42,0.00018798,2]
[373396252,1752984646363,-460.0,0.00018798,2]
[373396253,1752984646372,-1372.45,0.00018798,2]
[373396254,1752984646382,-460.0,0.00018798,2]
[373396255,1752984646392,-460.0,0.00018798,2]
[373396256,1752984646402,-460.0,0.00018798,2]
[373396257,1752984646411,-460.0,0.00018798,2]
[373396258,1752984646423,-460.0,0.00018799,2]
[373396259,1752984646434,-460.0,0.00018799,2]
[373396260,1752984646443,-424.25015195,0.00018799,2]
[373396262,1752984646454,-460.0,0.00018799,2]
[373396264,1752984646463,-460.0,0.00018799,2]
[373396266,1752984646473,-460.0,0.00018799,2]
[373396268,1752984646483,-441.38449632,0.00018799,2]
[373396270,1752984646493,-460.0,0.00018799,2]
[373396272,1752984646502,-460.0,0.00018799,2]
[373396274,1752984646512,-460.0,0.00018799,2]
[373396276,1752984646522,-460.0,0.00018799,2]
[373396278,1752984646531,-498.50939823,0.00018799,2]
[373396279,1752984646541,-750.27,0.00018799,2]
[373396280,1752984646551,-460.0,0.00018799,2]
[373396281,1752984646565,-460.0,0.00018799,2]
[373396282,1752984646575,-461.73,0.00018799,2]
[373396283,1752984646584,-463.99450383,0.00018799,2]
[373396284,1752984646595,-460.0,0.00018799,2]
[373396285,1752984646604,-460.0,0.00018799,2]
[373396286,1752984646614,-191.8188262,0.00018799,2]
[373396287,1752984646623,-460.0,0.00018799,2]
[373396288,1752984646634,-460.0,0.00018799,2]
[373396289,1752984646644,-460.0,0.00018799,2]
[373396290,1752984646654,-460.0,0.00018799,2]
[373396291,1752984646663,-467.76582936,0.00018799,2]
[373396292,1752984646672,-460.0,0.00018799,2]
[373396293,1752984646682,-460.0,0.00018799,2]
[373396294,1752984646691,-460.0,0.00018799,2]
[373396295,1752984646700,-460.0,0.00018799,2]
[373396296,1752984646710,-460.0,0.00018799,2]
[373396297,1752984646720,-460.0,0.00018799,2]
[373396298,1752984646729,-460.0,0.00018799,2]
[373396299,1752984646739,-479.03,0.000188,2]
[373396300,1752984646749,-460.0,0.000188,2]
[373396301,1752984646759,-460.0,0.000188,2]
[373396302,1752984646770,-699.01,0.000188,2]
[373396303,1752984646779,-1665.84,0.000188,2]
[373396304,1752984646788,-460.0,0.000188,2]
[373396305,1752984646797,-460.0,0.00018801,2]
[373396306,1752984646806,-463.25221934,0.00018801,2]
[373396307,1752984646815,-475.19,0.00018899,2]
[373396308,1752984646824,-460.0,0.00018899,2]
[373396309,1752984646833,-460.0,0.00018899,2]
[373396310,1752984646842,-460.0,0.000189,2]
[373396311,1752984646851,-460.0,0.000189,2]
[373396312,1752984646861,-482.56,0.000189,2]
[373396313,1752984646870,-988.82999486,0.000189,2]
[373396314,1752984646880,-503.55,0.000189,2]
[373396315,1752984646889,-4540.27307948,0.000189,2]
[373396316,1752984646899,-1298.4,0.000189,2]
[373396317,1752984646908,-590.24181969,0.0001898,2]
[373396318,1752984646916,-959.6,0.00019001,2]
[373396319,1752984646926,-460.0,0.00019001,2]
[373396320,1752984646935,-600.27,0.00019001,2]
[373396321,1752984646944,-748.7,0.00019001,2]
[373396322,1752984646953,-509.24,0.0001907,2]
[373396323,1752984646962,-1077.5,0.00019072,2]
[373396324,1752984646972,-460.0,0.00019072,2]
[373396325,1752984646981,-906.42,0.00019072,2]
[373396326,1752984646991,-460.0,0.00019072,2]
[373396327,1752984646999,-1372.45,0.00019072,2]
[373396328,1752984647008,-460.0,0.00019072,2]
[373396329,1752984647018,-460.0,0.00019072,2]
[373396330,1752984647027,-460.0,0.00019072,2]
[373396331,1752984647036,-460.0,0.00019072,2]
[373396332,1752984647045,-460.0,0.00019073,2]
[373396333,1752984647055,-460.0,0.00019073,2]
[373396334,1752984647064,-460.0,0.00019073,2]
[373396335,1752984647073,-460.0,0.00019073,2]
[373396336,1752984647082,-460.0,0.00019073,2]
[373396337,1752984647091,-460.0,0.00019073,2]
[373396338,1752984647101,-750.27,0.00019073,2]
[373396339,1752984647110,-460.0,0.00019073,2]
[373396340,1752984647119,-460.0,0.00019073,2]
[373396341,1752984647128,-460.0,0.00019073,2]
[373396342,1752984647137,-460.0,0.00019073,2]
[373396343,1752984647147,-460.0,0.00019073,2]
[373396344,1752984647155,-460.0,0.00019073,2]
[373396345,1752984647165,-460.0,0.00019073,2]
[373396346,1752984647174,-460.0,0.00019073,2]
[373396347,1752984647184,-463.24250931,0.00019073,2]
[373396348,1752984647193,-460.0,0.00019073,2]
[373396349,1752984647202,-460.0,0.00019073,2]
[373396350,1752984647212,-460.0,0.00019073,2]
[373396351,1752984647222,-268.72023351,0.00019073,2]
[373396352,1752984647232,-460.0,0.00019074,2]
[373396353,1752984647242,-460.0,0.00019074,2]
[373396354,1752984647251,-699.01,0.00019074,2]
[373396355,1752984647260,-1665.84,0.00019074,2]
[373396356,1752984647269,-460.0,0.00019074,2]
[373396357,1752984647278,-460.0,0.00019075,2]
[373396358,1752984647288,-4540.27307943,0.00019141,2]
[373396359,1752984647297,-460.0,0.00019173,2]
[373396360,1752984647307,-460.0,0.00019173,2]
[373396361,1752984647317,-460.0,0.00019174,2]
[373396362,1752984647326,-460.0,0.00019174,2]
[373396363,1752984647336,-482.56,0.00019174,2]
[373396364,1752984647345,-503.55,0.00019174,2]
[373396365,1752984647354,-1298.4,0.00019174,2]
[373396366,1752984647363,-185.282593,0.00019178,2]
[373396367,1752984647373,-632.1316733,0.00019178,2]
[373396368,1752984647382,-666.0,0.00019178,2]
[373396369,1752984647391,-460.0,0.00019274,2]
[373396370,1752984647400,-460.0,0.00019274,2]
[373396371,1752984647410,-460.0,0.00019274,2]
[373396372,1752984647419,-216.66365752,0.00019274,2]
[373396373,1752984647428,-460.0,0.00019274,2]
[373396374,1752984647438,-460.43013092,0.00019274,2]
[373396375,1752984647447,-460.0,0.00019274,2]
[373396376,1752984647457,-505.09698341,0.00019274,2]
[373396377,1752984647467,-460.85177582,0.00019274,2]
[373396378,1752984647476,-460.0,0.00019274,2]
[373396379,1752984647485,-460.0,0.00019274,2]
[373396380,1752984647495,-460.0,0.00019274,2]
[373396381,1752984647504,-959.6,0.00019275,2]
[373396382,1752984647514,-460.0,0.00019275,2]
[373396383,1752984647523,-600.27,0.00019275,2]
[373396384,1752984647533,-748.7,0.00019275,2]
[373396385,1752984647543,-100000.0,0.00019329,2]
[373396386,1752984647552,-943.52,0.00019337,3]
[373396387,1752984647566,-471.76,0.00019337,3]
[373396388,1752984647576,-509.24,0.00019344,2]
[373396389,1752984647585,-1077.5,0.00019346,2]
[373396390,1752984647595,-460.0,0.00019346,2]
[373396391,1752984647606,-906.42,0.00019346,2]
[373396392,1752984647616,-460.0,0.00019346,2]
[373396393,1752984647625,-460.0,0.00019346,2]
[373396394,1752984647635,-1372.45,0.00019346,2]
[373396395,1752984647644,-460.0,0.00019346,2]
[373396396,1752984647654,-460.0,0.00019346,2]
[373396397,1752984647663,-460.0,0.00019346,2]
[373396398,1752984647673,-460.0,0.00019347,2]
[373396399,1752984647684,-460.0,0.00019347,2]
[373396400,1752984647694,-460.0,0.00019347,2]
[373396401,1752984647703,-750.27,0.00019347,2]
[373396402,1752984647713,-460.0,0.00019347,2]
[373396403,1752984647722,-460.0,0.00019347,2]
[373396404,1752984647732,-460.0,0.00019347,2]
[373396405,1752984647741,-460.0,0.00019347,2]
[373396406,1752984647751,-460.0,0.00019347,2]
[373396407,1752984647760,-460.0,0.00019347,2]
[373396408,1752984647770,-590.24181969,0.00019347,2]
[373396409,1752984647780,-460.0,0.00019347,2]
[373396410,1752984647789,-460.0,0.00019347,2]
[373396411,1752984647798,-512.91817053,0.00019347,2]
[373396412,1752984647808,-460.0,0.00019348,2]
[373396413,1752984647817,-460.0,0.00019348,2]
[373396414,1752984647827,-699.01,0.00019348,2]
[373396415,1752984647836,-1665.84,0.00019348,2]
[373396416,1752984647846,-312.12986255,0.00019348,2]
[373396417,1752984647855,-460.0,0.00019349,2]
[373396418,1752984647864,-506.73499596,0.00019373,2]
[373396419,1752984647873,-501.71492827,0.00019373,2]
[373396420,1752984647882,-500.0,0.00019373,2]
[373396421,1752984647892,-150.14465154,0.00019373,2]
[373396422,1752984647901,-4540.27307943,0.00019383,2]
[373396423,1752984647910,-460.0,0.00019447,2]
[373396424,1752984647920,-460.0,0.00019447,2]
[373396425,1752984647929,-460.0,0.00019448,2]
[373396426,1752984647940,-460.0,0.00019448,2]
[373396427,1752984647950,-482.56,0.00019448,2]
[373396428,1752984647959,-503.55,0.00019448,2]
[373396429,1752984647969,-1298.4,0.00019448,2]
[373396430,1752984647978,-460.0,0.00019548,2]
[373396431,1752984647987,-460.0,0.00019548,2]
[373396432,1752984647996,-959.6,0.00019549,2]
[373396433,1752984648006,-460.0,0.00019549,2]
[373396434,1752984648101,-600.27,0.00019549,2]
[373396435,1752984648111,-748.7,0.00019549,2]
[373396436,1752984648121,-420.0,0.00019611,2]
[373396437,1752984648130,-509.24,0.00019618,2]
[373396438,1752984648140,-1077.5,0.0001962,2]
[373396439,1752984648149,-460.0,0.0001962,2]
[373396440,1752984648159,-906.42,0.0001962,2]
[373396441,1752984648168,-460.0,0.0001962,2]
[373396442,1752984648178,-460.0,0.0001962,2]
[373396443,1752984648187,-1372.45,0.0001962,2]
[373396444,1752984648196,-460.0,0.0001962,2]
[373396445,1752984648205,-460.0,0.0001962,2]
[373396446,1752984648215,-460.0,0.0001962,2]
[373396447,1752984648225,-460.0,0.00019621,2]
[373396448,1752984648234,-460.0,0.00019621,2]
[373396449,1752984648244,-460.0,0.00019621,2]
[373396450,1752984648254,-750.27,0.00019621,2]
[373396451,1752984648263,-460.0,0.00019621,2]
[373396452,1752984648272,-460.0,0.00019621,2]
[373396453,1752984648282,-460.0,0.00019621,2]
[373396454,1752984648291,-460.0,0.00019621,2]
[373396455,1752984648301,-460.0,0.00019621,2]
[373396456,1752984648310,-460.0,0.00019621,2]
[373396457,1752984648320,-460.0,0.00019622,2]
[373396458,1752984648329,-460.0,0.00019622,2]
[373396459,1752984648338,-699.01,0.00019622,2]
[373396460,1752984648348,-1665.84,0.00019622,2]
[373396461,1752984648357,-460.0,0.00019623,2]
[373396462,1752984648367,-4540.27307943,0.00019624,2]
[373396463,1752984648376,-460.0,0.00019721,2]
[373396464,1752984648386,-460.0,0.00019721,2]
[373396465,1752984648396,-482.56,0.00019722,2]
[373396466,1752984648406,-503.55,0.00019722,2]
[373396467,1752984648416,-1298.4,0.00019722,2]
[373396468,1752984648425,-215.71456056,0.00019793,2]
[373396469,1752984648436,-12615.16111038,0.00019793,2]
[373396470,1752984648446,-160.0,0.00019793,2]
[373396471,1752984648455,-525.91036056,0.00019793,2]
[373396472,1752984648465,-160.0,0.00019793,2]
[373396473,1752984648474,-160.0,0.00019793,2]
[373396474,1752984648484,-230.98123516,0.00019793,2]
[373396475,1752984648495,-160.0,0.00019793,2]
[373396476,1752984648505,-160.0,0.00019793,2]
[373396477,1752984648514,-214.5637056,0.00019793,2]
[373396478,1752984648523,-160.0,0.00019793,2]
[373396479,1752984648533,-839.59621281,0.00019793,2]
[373396480,1752984648543,-160.0,0.00019794,2]
[373396481,1752984648556,-959.6,0.00019823,2]
[373396482,1752984648566,-232.65920905,0.00019823,2]
[373396483,1752984648575,-600.27,0.00019823,2]
[373396484,1752984648585,-748.7,0.00019823,2]
[373396485,1752984648596,-4540.27307943,0.00019866,2]
[373396486,1752984648606,-509.24,0.00019892,2]
[373396487,1752984648615,-1077.5,0.00019894,2]
[373396488,1752984648624,-460.0,0.00019894,2]
[373396489,1752984648635,-906.42,0.00019894,2]
[373396490,1752984648645,-460.0,0.00019894,2]
[373396491,1752984648654,-460.0,0.00019894,2]
[373396492,1752984648664,-1372.45,0.00019894,2]
[373396493,1752984648673,-217.63181093,0.00019894,2]
[373396494,1752984648682,-460.0,0.00019894,2]
[373396495,1752984648692,-460.0,0.00019894,2]
[373396496,1752984648702,-460.0,0.00019895,2]
[373396497,1752984648711,-460.0,0.00019895,2]
[373396498,1752984648722,-460.0,0.00019895,2]
[373396499,1752984648732,-750.27,0.00019895,2]
[373396500,1752984648741,-460.0,0.00019895,2]
[373396501,1752984648751,-460.0,0.00019895,2]
[373396502,1752984648761,-460.0,0.00019895,2]
[373396503,1752984648770,-460.0,0.00019895,2]
[373396504,1752984648779,-460.0,0.00019895,2]
[373396505,1752984648789,-460.0,0.00019895,2]
[373396506,1752984648798,-460.0,0.00019896,2]
[373396507,1752984648808,-460.0,0.00019896,2]
[373396508,1752984648817,-699.01,0.00019896,2]
[373396509,1752984648827,-1665.84,0.00019896,2]
[373396510,1752984648837,-470.8700511,0.00019897,2]
[373396511,1752984648847,-195.06147548,0.00019921,2]
[373396512,1752984648856,-460.0,0.00019995,2]
[373396513,1752984648866,-460.0,0.00019995,2]
[373396514,1752984648875,-482.56,0.00019996,2]
[373396515,1752984648885,-503.55,0.00019996,2]
[373396516,1752984648894,-1298.4,0.00019996,2]
[373396517,1752984648903,-959.6,0.00020097,2]
[373396518,1752984648913,-600.27,0.00020097,2]
[373396519,1752984648923,-748.7,0.00020097,2]
[373396520,1752984648932,-4540.27307943,0.00020107,2]
[373396521,1752984648941,-509.24,0.00020166,2]
[373396522,1752984648951,-1077.5,0.00020168,2]
[373396523,1752984648960,-460.0,0.00020168,2]
[373396524,1752984648970,-906.42,0.00020168,2]
[373396525,1752984648980,-460.0,0.00020168,2]
[373396526,1752984648990,-179.8,0.00020168,2]
[373396527,1752984648999,-1372.45,0.00020168,2]
[373396528,1752984649008,-460.0,0.00020168,2]
[373396529,1752984649018,-460.0,0.00020168,2]
[373396530,1752984649027,-412.70668576,0.00020169,2]
[373396531,1752984649037,-460.0,0.00020169,2]
[373396532,1752984649046,-460.0,0.00020169,2]
[373396533,1752984649056,-750.27,0.00020169,2]
[373396534,1752984649065,-460.0,0.00020169,2]
[373396535,1752984649074,-460.0,0.00020169,2]
[373396536,1752984649083,-565.66848106,0.00020169,2]
[373396537,1752984649093,-494.6798298,0.00020169,2]
[373396538,1752984649102,-460.0,0.00020169,2]
[373396539,1752984649112,-460.0,0.0002017,2]
[373396540,1752984649121,-460.0,0.0002017,2]
[373396541,1752984649131,-699.01,0.0002017,2]
[373396542,1752984649141,-1665.84,0.0002017,2]
[373396543,1752984649150,-185.928512,0.00020187,2]
[373396544,1752984649160,-460.0,0.00020269,2]
[373396545,1752984649169,-460.0,0.00020269,2]
[373396546,1752984649178,-482.56,0.0002027,2]
[373396547,1752984649188,-503.55,0.0002027,2]
[373396548,1752984649197,-1298.4,0.0002027,2]
[373396549,1752984649207,-4540.27307943,0.00020348,3]
[373396550,1752984649217,-959.6,0.00020371,2]
[373396551,1752984649226,-600.27,0.00020371,2]
[373396552,1752984649235,-748.7,0.00020371,2]
[373396553,1752984649245,-500.0,0.0002044,2]
[373396554,1752984649254,-509.24,0.0002044,2]
[373396555,1752984649264,-1077.5,0.00020442,2]
[373396556,1752984649274,-460.0,0.00020442,2]
[373396557,1752984649283,-906.42,0.00020442,2]
[373396558,1752984649292,-460.0,0.00020442,2]
[373396559,1752984649302,-1372.45,0.00020442,2]
[373396560,1752984649311,-603.11792919,0.00020442,2]
[373396561,1752984649321,-460.0,0.00020442,2]
[373396562,1752984649331,-460.0,0.00020443,2]
[373396563,1752984649340,-750.27,0.00020443,2]
[373396564,1752984649350,-460.0,0.00020443,2]
[373396565,1752984649359,-460.0,0.00020443,2]
[373396566,1752984649369,-460.0,0.00020443,2]
[373396567,1752984649379,-460.0,0.00020444,2]
[373396568,1752984649389,-460.0,0.00020444,2]
[373396569,1752984649399,-699.01,0.00020444,2]
[373396570,1752984649409,-1665.84,0.00020444,2]
[373396571,1752984649418,-4500.24734536,0.0002053,3]
[373396572,1752984649428,-460.0,0.00020543,2]
[373396573,1752984649437,-460.0,0.00020543,2]
[373396574,1752984649447,-482.56,0.00020544,2]
[373396575,1752984649456,-503.55,0.00020544,2]
[373396576,1752984649466,-1298.4,0.00020544,2]
[373396577,1752984649475,-4540.27307943,0.0002059,3]
[373396578,1752984649486,-959.6,0.00020645,2]
[373396579,1752984649495,-600.27,0.00020645,2]
[373396580,1752984649505,-748.7,0.00020645,2]
[373396581,1752984649514,-509.24,0.00020714,2]
[373396582,1752984649523,-1077.5,0.00020716,2]
[373396583,1752984649533,-460.0,0.00020716,2]
[373396584,1752984649541,-906.42,0.00020716,2]
[373396585,1752984649550,-460.0,0.00020716,2]
[373396586,1752984649564,-1372.45,0.00020716,2]
[373396587,1752984649572,-460.0,0.00020716,2]
[373396588,1752984649582,-460.0,0.00020717,2]
[373396589,1752984649591,-750.27,0.00020717,2]
[373396590,1752984649600,-460.0,0.00020717,2]
[373396591,1752984649609,-381.83249376,0.00020717,2]
[373396592,1752984649618,-460.0,0.00020717,2]
[373396593,1752984649627,-460.0,0.00020718,2]
[373396594,1752984649636,-460.0,0.00020718,2]
[373396595,1752984649646,-699.01,0.00020718,2]
[373396596,1752984649655,-1665.84,0.00020718,2]
[373396597,1752984649664,-460.0,0.00020817,2]
[373396598,1752984649673,-226.15,0.00020817,2]
[373396599,1752984649681,-482.56,0.00020818,2]
[373396600,1752984649691,-503.55,0.00020818,2]
[373396601,1752984649699,-1298.4,0.00020818,2]
[373396602,1752984649708,-4540.27307943,0.00020831,4]
[373396603,1752984649717,-1049.72,0.00020841,2]
[373396604,1752984649726,-959.6,0.00020919,2]
[373396605,1752984649736,-600.27,0.00020919,2]
[373396606,1752984649744,-748.7,0.00020919,2]
[373396607,1752984649753,-512.46627473,0.00020988,2]
[373396608,1752984649762,-509.24,0.00020988,2]
[373396609,1752984649771,-1077.5,0.0002099,2]
[373396610,1752984649780,-460.0,0.0002099,2]
[373396611,1752984649789,-906.42,0.0002099,2]
[373396612,1752984649798,-460.0,0.0002099,2]
[373396613,1752984649807,-1372.45,0.0002099,2]
[373396614,1752984649816,-460.0,0.0002099,2]
[373396615,1752984649825,-460.0,0.00020991,2]
[373396616,1752984649834,-750.27,0.00020991,2]
[373396617,1752984649844,-460.0,0.00020991,2]
[373396618,1752984649852,-460.0,0.00020991,2]
[373396619,1752984649861,-201.40492519,0.00020992,2]
[373396620,1752984649871,-460.0,0.00020992,2]
[373396621,1752984649888,-699.01,0.00020992,2]
[373396622,1752984649900,-1665.84,0.00020992,2]
[373396623,1752984649910,-3000.0,0.00021,2]
[373396624,1752984650039,-3000.0,0.0002101,2]
[373396625,1752984650048,-3000.0,0.0002102,2]
[373396626,1752984650058,-3000.0,0.0002103,2]
[373396627,1752984650067,-3000.0,0.0002104,2]
[373396628,1752984650075,-3000.0,0.0002105,2]
[373396629,1752984650084,-3000.0,0.0002106,2]
[373396630,1752984650096,-500.0,0.00021064,2]
[373396631,1752984650105,-3000.0,0.0002107,2]
[373396632,1752984650114,-4540.27307943,0.00021072,4]
[373396633,1752984650126,-3000.0,0.0002108,2]
[373396634,1752984650135,-3000.0,0.0002109,2]
[373396635,1752984650144,-433.85273542,0.00021091,2]
[373396636,1752984650153,-482.56,0.00021092,2]
[373396637,1752984650163,-503.55,0.00021092,2]
[373396638,1752984650173,-1298.4,0.00021092,2]
[373396639,1752984650184,-3000.0,0.000211,2]
[373396640,1752984650198,-3000.0,0.0002111,2]
[373396641,1752984650207,-3000.0,0.0002112,2]
[373396642,1752984650217,-3000.0,0.0002113,2]
[373396643,1752984650226,-3000.0,0.0002114,2]
[373396644,1752984650235,-3000.0,0.0002115,2]
[373396645,1752984650245,-3000.0,0.0002116,2]
[373396646,1752984650255,-3000.0,0.0002117,2]
[373396647,1752984650264,-3000.0,0.0002118,2]
[373396648,1752984650273,-3000.0,0.0002119,2]
[373396649,1752984650283,-959.6,0.00021193,2]
[373396650,1752984650293,-600.27,0.00021193,2]
[373396651,1752984650303,-748.7,0.00021193,2]
[373396652,1752984650313,-3000.0,0.000212,2]
[373396653,1752984650323,-3000.0,0.0002121,2]
[373396654,1752984650334,-3000.0,0.0002122,2]
[373396655,1752984650343,-3000.0,0.0002123,2]
[373396656,1752984650353,-3000.0,0.0002124,2]
[373396657,1752984650362,-3000.0,0.0002125,2]
[373396658,1752984650372,-4640.78395,0.0002126,2]
[373396659,1752984650382,-509.24,0.00021262,2]
[373396660,1752984650392,-1077.5,0.00021264,2]
[373396661,1752984650402,-460.0,0.00021264,2]
[373396662,1752984650411,-906.42,0.00021264,2]
[373396663,1752984650420,-394.01515072,0.00021264,2]
[373396664,1752984650430,-1372.45,0.00021264,2]
[373396665,1752984650439,-460.0,0.00021264,2]
[373396666,1752984650449,-404.82698452,0.00021265,2]
[373396667,1752984650458,-750.27,0.00021265,2]
[373396668,1752984650473,-460.0,0.00021265,2]
[373396669,1752984650483,-460.0,0.00021265,2]
[373396670,1752984650492,-460.0,0.00021266,2]
[373396671,1752984650502,-699.01,0.00021266,2]
[373396672,1752984650512,-1665.84,0.00021266,2]
[373396673,1752984650521,-4540.27307943,0.00021314,5]
[373396674,1752984650531,-482.56,0.00021366,2]
[373396675,1752984650540,-503.55,0.00021366,2]
[373396676,1752984650550,-1298.4,0.00021366,2]
[373396677,1752984650564,-1381.46154769,0.00021389,2]
[373396678,1752984650574,-587.0,0.00021398,2]
[373396679,1752984650583,-959.6,0.00021467,2]
[373396680,1752984650594,-600.27,0.00021467,2]
[373396681,1752984650606,-748.7,0.00021467,2]
[373396682,1752984650619,-509.24,0.00021536,2]
[373396683,1752984650629,-1077.5,0.00021538,2]
[373396684,1752984650638,-460.0,0.00021538,2]
[373396685,1752984650647,-906.42,0.00021538,2]
[373396686,1752984650657,-1372.45,0.00021538,2]
[373396687,1752984650666,-460.0,0.00021538,2]
[373396688,1752984650676,-750.27,0.00021539,2]
[373396689,1752984650686,-460.0,0.00021539,2]